bitfinex/quotes_ETHUSD_20260120
["timestamp","ask_amount","ask_price","bid_price","bid_amount"]
[1768928767538,30.37238249,3020.0,3018.8,10.0740051]
[1768928767743,10.27785949,3020.0,3018.9,3.31241197]
[1768928767956,10.27785949,3020.3,3019.0,10.0740051]
[1768928768139,0.544,3020.4,3019.1,12.07513977]
[1768928768344,0.001,3020.4,3019.1,12.07513977]
[1768928769958,0.001,3020.4,3019.3,10.0740051]
[1768928770478,0.001,3020.1,3019.2,9.93640698]
[1768928770774,0.001,3020.1,3019.3,0.542]
[1768928771151,0.001,3020.1,3019.3,2.13493519]
[1768928771781,0.001,3020.1,3019.3,12.20894029]
[1768928771958,0.001,3020.1,3019.3,15.52086359]
[1768928772544,0.001,3020.1,3019.3,15.52093115]
[1768928772750,10.82185949,3020.1,3018.7,3.31261034]
[1768928772949,10.27785949,3019.9,3018.7,3.31261034]
[1768928773295,10.27785949,3019.9,3018.9,3.3123997]
[1768928773573,10.27785949,3019.9,3018.7,3.31268312]
[1768928774277,10.27785949,3019.9,3018.6,6.62558802]
[1768928774484,11.30564544,3019.8,3018.7,1.72415931]
[1768928774777,10.27785949,3019.8,3018.7,1.72415931]
[1768928775147,0.543,3019.7,3018.7,12.81751873]
[1768928775568,11.26730176,3020.1,3018.7,12.81751873]
[1768928775569,0.543,3019.9,3018.7,12.81751873]
[1768928775764,11.26630176,3019.8,3018.6,17.71894744]
[1768928776379,11.26630176,3019.8,3018.7,11.09335942]
[1768928777157,0.543,3019.9,3018.7,11.09335942]
[1768928777358,11.80930176,3019.9,3018.7,11.09335942]
[1768928777771,11.26630176,3019.7,3018.6,17.71894744]
[1768928777964,1.12663018,3019.6,3018.7,11.09335942]
[1768928778165,1.12663018,3019.6,3018.8,3.31257453]
[1768928778361,11.26630176,3020.0,3018.8,17.71850848]
[1768928778562,0.001,3020.1,3018.9,11.63535942]
[1768928780155,0.001,3020.1,3019.1,11.09335942]
[1768928781453,11.26630176,3020.0,3019.0,3.31235508]
[1768928781686,0.001,3020.1,3018.4,11.09335942]
[1768928781687,11.26630176,3019.8,3018.4,11.09335942]
[1768928781881,14.07326444,3019.7,3018.7,3.31259263]
[1768928782187,11.26630176,3019.7,3018.5,21.0320707]
[1768928782387,2.3,3020.0,3018.6,11.09335942]
[1768928782591,0.543,3019.7,3018.6,11.09335942]
[1768928782798,0.543,3019.7,3018.6,13.36170008]
[1768928783366,11.80930176,3019.7,3018.6,2.26834066]
[1768928783562,11.26630176,3019.5,3018.3,14.94842764]
[1768928783763,11.26630176,3019.5,3018.4,3.31298395]
[1768928784162,2.624341,3019.7,3018.6,3.31279401]
[1768928784398,0.2625341,3019.6,3018.6,6.62558802]
[1768928784603,0.543,3019.7,3018.6,17.71894744]
[1768928785167,11.80930176,3019.7,3018.6,3.31279401]
[1768928785368,12.804384,3019.6,3018.3,11.09335942]
[1768928785591,11.26630176,3019.6,3018.4,3.3129656]
[1768928785802,11.26630176,3019.6,3018.5,6.62579744]
[1768928786100,0.543,3019.5,3018.5,6.62579744]
[1768928786281,11.26630176,3019.6,3018.4,17.71938644]
[1768928786478,0.543,3019.6,3018.5,11.09335942]
[1768928786681,0.001,3019.8,3018.6,13.73859942]
[1768928786878,0.544,3019.8,3018.6,13.73859942]
[1768928787196,0.001,3019.8,3018.6,13.73859942]
[1768928787510,9.71521531,3020.9,3018.6,13.73859942]
[1768928787511,0.543,3021.0,3019.5,11.09335942]
[1768928787676,12.99023194,3021.0,3019.6,13.38518601]
[1768928787872,11.80930176,3021.0,3019.6,11.63535942]
[1768928788404,11.26630176,3021.6,3019.8,11.09335942]
[1768928788595,0.543,3021.2,3019.8,11.09335942]
[1768928788775,0.543,3021.2,3020.0,11.09335942]
[1768928789102,0.543,3021.2,3020.0,11.63535942]
[1768928790370,11.26630176,3021.0,3019.6,11.09335942]
[1768928790675,11.26630176,3020.9,3020.0,3.31123773]
[1768928790872,11.26630176,3020.9,3019.6,11.09335942]
[1768928791078,1.12663018,3020.8,3020.0,6.62248584]
[1768928791293,0.543,3020.9,3020.0,3.31122757]
[1768928792385,0.543,3020.9,3019.8,14.404837]
[1768928792608,0.543,3020.9,3019.8,17.71631458]
[1768928793508,0.543,3020.9,3019.9,11.09335942]
[1768928794375,0.543,3020.9,3020.0,3.31125827]
[1768928794616,11.80930176,3020.9,3019.7,1.49470872]
[1768928794785,11.26630176,3020.7,3019.7,0.542]
[1768928794978,11.26630176,3020.7,3019.7,3.31155907]
[1768928795480,11.26630176,3020.7,3019.5,14.94716483]
[1768928795677,11.26630176,3020.7,3019.9,3.31131598]
[1768928795874,1.18093018,3020.8,3020.0,11.09335942]
[1768928796204,0.543,3020.9,3020.1,1.77160433]
[1768928796404,0.001,3020.4,3020.1,3.31114863]
[1768928798321,0.128,3021.9,3020.2,11.09335942]
[1768928798524,0.128,3021.9,3020.5,11.09335942]
[1768928798525,11.26630176,3021.9,3020.5,11.09335942]
[1768928798731,4.273892,3021.7,3020.5,11.09335942]
[1768928799085,2.336818,3021.7,3020.5,11.09335942]
[1768928799313,1.36031198,3021.7,3020.6,13.19594129]
[1768928799912,0.543,3021.6,3020.6,13.19594129]
[1768928800426,0.75602708,3022.1,3020.6,13.19594129]
[1768928800633,0.75602708,3022.1,3020.9,11.09335942]
[1768928800980,0.44610282,3022.1,3020.9,11.09335942]
[1768928801345,0.44610282,3022.1,3021.1,11.09335942]
[1768928801480,0.44610282,3022.1,3021.1,11.63535942]
[1768928801982,0.37672443,3022.1,3021.2,11.09335942]
[1768928802177,4.17109607,3023.7,3021.2,11.09335942]
[1768928802178,11.26630176,3023.4,3021.6,6.40490652]
[1768928802530,11.26630176,3023.4,3021.0,1.10933594]
[1768928802531,0.33066077,3024.2,3022.2,11.09335942]
[1768928802843,0.33066077,3024.2,3022.1,16.5447867]
[1768928802844,0.0210772,3024.6,3022.4,11.09335942]
[1768928803047,0.0210772,3024.6,3022.1,16.5447867]
[1768928803048,12.48309,3024.4,3022.5,11.63535942]
[1768928803310,2.556594,3024.5,3022.7,11.09335942]
[1768928803478,11.26630176,3024.5,3022.9,11.09335942]
[1768928803680,1.76922855,3024.4,3023.0,12.25689536]
[1768928804241,13.59764578,3024.4,3023.0,1.16353594]
[1768928804523,14.176365,3024.0,3022.8,6.61638216]
[1768928804681,11.754572,3024.3,3022.9,11.14001722]
[1768928804888,11.754572,3024.3,3022.8,9.92457324]
[1768928804889,4.393066,3024.3,3023.1,11.14001722]
[1768928805313,11.70089108,3024.2,3022.8,6.61638216]
[1768928805493,13.31028679,3024.1,3022.8,6.61638216]
[1768928805833,13.31028679,3024.1,3022.7,10.89307813]
[1768928805834,23.774508,3023.8,3022.7,6.6165902]
[1768928805988,13.23579,3023.8,3022.7,6.6165902]
[1768928806188,11.70089108,3023.9,3022.7,6.6165902]
[1768928806189,5.466365,3023.9,3022.7,6.6165902]
[1768928806403,0.6008365,3023.8,3022.7,3.30828968]
[1768928806621,12.548977,3023.9,3022.7,0.542]
[1768928806805,11.548977,3023.8,3022.7,0.542]
[1768928807011,11.70089108,3023.7,3022.6,3.30840997]
[1768928807216,11.70089108,3023.7,3022.5,3.30851108]
[1768928807416,12.733609,3023.4,3022.0,0.542]
[1768928807587,12.733609,3023.4,3022.0,3.30895873]
[1768928807588,41.70089108,3023.2,3022.0,3.30895873]
[1768928807898,30.0,3023.1,3022.0,3.30895873]
[1768928808484,14.13805808,3023.0,3021.7,3.30936224]
[1768928808686,13.11469689,3022.9,3021.7,3.30936224]
[1768928808886,0.542,3022.8,3021.7,3.30936224]
[1768928809141,0.542,3022.8,3021.7,6.61875761]
[1768928809491,11.70089108,3022.6,3021.0,12.00241407]
[1768928809784,0.542,3022.8,3021.0,12.00241407]
[1768928809785,26.978668,3022.4,3021.4,3.30965335]
[1768928809984,11.70089108,3022.4,3021.4,3.30965335]
[1768928810392,11.70089108,3022.4,3021.1,0.542]
[1768928810634,11.70089108,3022.4,3021.2,6.61988612]
[1768928811133,0.542,3022.3,3021.2,6.61988612]
[1768928811296,0.542,3022.3,3021.3,10.89307813]
[1768928811488,0.542,3022.7,3021.5,10.89307813]
[1768928811688,9.099228,3022.6,3021.5,11.43507813]
[1768928811923,9.099228,3022.6,3021.5,10.89307813]
[1768928812101,9.099228,3022.6,3021.4,0.542]
[1768928812306,0.9641228,3022.5,3021.4,0.542]
[1768928812505,2.410212,3022.6,3021.5,6.61922884]
[1768928812708,11.70089108,3022.4,3021.5,3.30961442]
[1768928813389,11.70089108,3022.4,3021.5,6.61922884]
[1768928813812,12.24289108,3022.7,3021.5,3.30961442]
[1768928814071,24.602137,3022.5,3021.5,3.30961442]
[1768928814620,12.61590434,3022.6,3021.3,6.61966702]
[1768928814929,2.484658,3022.5,3021.3,6.61966702]
[1768928815722,2.484658,3022.5,3021.4,10.89307813]
[1768928816064,0.542,3022.7,3021.4,10.89307813]
[1768928816065,0.33996713,3022.4,3021.4,10.89307813]
[1768928816219,12.791703,3022.5,3021.4,10.89307813]
[1768928816424,10.487203,3022.5,3021.4,10.89307813]
[1768928816626,10.487203,3022.5,3021.5,6.61922884]
[1768928816827,11.70089108,3022.6,3021.5,6.61922884]
[1768928816828,14.342431,3022.6,3021.5,6.61922884]
[1768928817027,6.80441,3022.4,3021.5,6.61922884]
[1768928817336,10.630068,3022.6,3021.5,6.61922884]
[1768928817672,11.70089108,3022.3,3021.4,3.30963761]
[1768928818453,11.70089108,3022.3,3021.4,6.61936157]
[1768928818668,1.17008911,3022.2,3021.3,6.61966702]
[1768928818828,0.542,3022.2,3021.3,17.51274515]
[1768928819722,0.542,3022.2,3021.7,0.002]
[1768928820058,0.001,3022.1,3021.7,0.002]
[1768928820662,7.139618,3022.0,3021.2,3.30988151]
[1768928821155,11.70189108,3022.1,3020.6,6.62120108]
[1768928821156,16.44331,3021.7,3020.6,6.62120108]
[1768928821364,0.542,3021.7,3020.7,10.89307813]
[1768928821550,1.88415091,3021.9,3020.7,10.89307813]
[1768928821749,0.001,3022.1,3020.9,10.89307813]
[1768928822071,0.001,3022.1,3021.0,11.43507813]
[1768928822759,0.001,3022.1,3021.2,10.89307813]
[1768928823545,0.001,3022.1,3021.3,0.542]
[1768928824047,0.001,3022.1,3021.3,11.43507813]
[1768928824246,0.001,3022.1,3021.3,13.57160173]
[1768928824650,0.001,3022.1,3021.4,17.51252605]
[1768928824960,12.24389108,3022.1,3020.4,14.20386715]
[1768928825181,12.24389108,3022.1,3021.3,3.30979408]
[1768928825350,0.543,3022.1,3021.3,6.61962759]
[1768928825548,0.543,3022.1,3021.1,3.85202924]
[1768928825549,0.543,3022.1,3021.1,3.85196924]
[1768928825754,0.543,3022.1,3021.3,6.61962349]
[1768928825956,0.543,3022.1,3021.2,3.3099024]
[1768928826135,0.543,3022.1,3021.3,3.30982892]
[1768928826332,0.001,3022.1,3021.4,10.89307813]
[1768928826734,0.001,3022.1,3021.5,18.05430697]
[1768928827246,0.001,3022.1,3021.1,3.30998442]
[1768928827247,0.001,3022.1,3021.4,3.30969714]
[1768928827738,0.001,3022.1,3021.5,10.89307813]
[1768928828364,11.70089108,3023.4,3021.5,10.89307813]
[1768928828567,1.60939571,3024.1,3021.8,10.89307813]
[1768928828568,1.17018911,3023.3,3021.8,10.89307813]
[1768928828768,12.24289108,3023.8,3022.2,10.89307813]
[1768928828976,11.70089108,3023.8,3022.3,11.43507813]
[1768928829186,12.24289108,3023.8,3022.3,11.43507813]
[1768928829689,11.70189108,3023.5,3022.4,0.542]
[1768928829841,1.17018911,3023.4,3022.4,0.542]
[1768928830041,1.17018911,3023.4,3022.4,11.43507813]
[1768928830240,0.001,3023.5,3022.4,11.43507813]
[1768928830854,0.001,3023.5,3022.6,10.89307813]
[1768928831064,11.70189108,3023.5,3022.2,10.89307813]
[1768928831250,40.28491208,3023.4,3022.4,3.30861264]
[1768928831455,30.0,3023.3,3022.4,3.30861264]
[1768928831683,30.0,3023.3,3022.3,3.85071675]
[1768928831684,3.22076751,3023.2,3022.3,3.30872618]
[1768928831986,26.487995,3023.2,3022.2,0.542]
[1768928832142,0.001,3023.5,3022.1,0.542]
[1768928832342,0.001,3023.2,3022.1,11.43507813]
[1768928832572,0.001,3023.2,3022.4,3.30862764]
[1768928833194,0.001,3023.2,3022.1,3.30891562]
[1768928833356,11.70189108,3023.2,3022.1,3.85091562]
[1768928833561,12.24389108,3023.2,3022.1,7.15987296]
[1768928834352,12.24389108,3023.2,3022.1,3.85091562]
[1768928834608,1.22438911,3023.1,3022.0,3.3090572]
[1768928834746,32.77804208,3022.9,3021.3,14.2028462]
[1768928834954,13.774537,3022.8,3021.5,3.30958471]
[1768928835176,5.96418,3022.8,3021.6,14.59312515]
[1768928835652,8.89713928,3022.7,3021.6,3.30950489]
[1768928835869,8.89713928,3022.7,3021.5,3.30958613]
[1768928835870,11.42426023,3022.5,3021.5,3.30958558]
[1768928836819,23.258502,3022.4,3021.5,3.30958716]
[1768928836964,23.258502,3022.4,3021.5,3.30958102]
[1768928837157,3.22076751,3022.3,3021.5,3.30958102]
[1768928837463,0.542,3022.4,3021.5,6.61919544]
[1768928837674,0.542,3022.5,3021.5,6.61919544]
[1768928838166,11.42426023,3022.9,3021.5,9.92880986]
[1768928838362,13.63436323,3023.1,3021.6,11.28362026]
[1768928838562,11.96626023,3023.1,3021.7,13.40486327]
[1768928838792,11.96626023,3023.1,3021.8,0.542]
[1768928839173,11.96626023,3023.1,3021.9,11.28362026]
[1768928839393,11.96626023,3023.1,3022.0,3.30906684]
[1768928839594,1.19672602,3023.0,3022.0,6.61813368]
[1768928840113,1.19672602,3023.0,3021.9,14.59275149]
[1768928840458,12.62098625,3023.0,3021.9,6.61830757]
[1768928840660,12.62098625,3023.0,3021.9,7.16030757]
[1768928841011,12.62098625,3023.0,3021.9,18.44392783]
[1768928841300,1.31629862,3022.9,3021.9,18.44392783]
[1768928841459,11.42426023,3022.7,3021.8,0.542]
[1768928841663,11.42426023,3022.7,3021.3,14.59340194]
[1768928841664,25.385242,3022.6,3021.6,0.542]
[1768928841896,11.96626023,3022.6,3021.6,0.542]
[1768928842101,1.19662602,3022.5,3021.9,3.30917128]
[1768928842297,1.19662602,3022.5,3021.9,6.61834762]
[1768928842497,0.542,3022.8,3021.9,3.30917128]
[1768928842797,0.001,3023.2,3022.0,11.82562026]
[1768928843007,0.542,3023.1,3022.0,11.82562026]
[1768928843609,0.542,3023.1,3022.1,6.61791468]
[1768928843897,0.542,3023.1,3022.1,17.90153494]
[1768928844263,1.19672602,3023.1,3022.1,11.77122551]
[1768928844461,0.001,3023.2,3022.2,11.28362026]
[1768928844888,0.001,3023.5,3022.2,11.28362026]
[1768928845499,0.001,3023.5,3022.4,11.28362026]
[1768928845812,11.42426023,3024.2,3022.4,11.28362026]
[1768928845813,11.42426023,3024.5,3022.4,11.28362026]
[1768928845971,10.648576,3024.4,3022.4,11.28362026]
[1768928846581,9.688848,3024.4,3022.4,11.28362026]
[1768928846902,2.11131082,3024.3,3022.6,11.28362026]
[1768928847074,2.11131082,3024.3,3022.8,11.28362026]
[1768928847480,13.53557105,3024.3,3022.8,11.28362026]
[1768928847787,2.11131082,3024.3,3023.0,11.28362026]
[1768928847968,2.11131082,3024.3,3023.1,11.82562026]
[1768928848162,11.42426023,3024.4,3023.1,14.00060678]
[1768928848163,1.35355711,3024.2,3023.1,14.00060678]
[1768928848878,12.77781734,3024.2,3023.1,14.00060678]
[1768928849074,1.35355711,3024.2,3023.1,14.00060678]
[1768928849275,0.542,3024.4,3023.1,14.00060678]
[1768928849710,0.542,3024.5,3023.3,11.28362026]
[1768928850023,2.068104,3024.4,3023.3,11.28362026]
[1768928850232,0.2610104,3024.3,3023.3,11.28362026]
[1768928850515,11.42426023,3024.3,3023.2,6.61550674]
[1768928850676,11.42426023,3024.1,3022.9,11.28362026]
[1768928851021,11.42426023,3024.4,3023.1,17.89925353]
[1768928851166,2.063104,3024.3,3023.2,11.28362026]
[1768928851568,0.542,3024.4,3023.3,3.30764396]
[1768928852367,0.542,3024.4,3023.4,0.542]
[1768928852574,11.96626023,3024.4,3023.4,0.542]
[1768928852777,2.469752,3024.3,3023.4,0.542]
[1768928853574,2.469752,3024.3,3023.5,3.30742516]
[1768928853775,1.44360122,3024.2,3023.5,3.30742516]
[1768928853969,1.44360122,3024.2,3023.2,11.28362026]
[1768928854169,12.86786145,3024.2,3023.2,3.30768425]
[1768928854491,2.80435,3024.1,3023.1,11.82562026]
[1768928854692,4.09113615,3024.1,3023.1,11.82562026]
[1768928855001,1.28678615,3024.1,3023.3,3.30761405]
[1768928855198,1.28678615,3024.1,3022.7,11.28362026]
[1768928855199,11.42426023,3024.0,3022.7,11.28362026]
[1768928855368,11.42426023,3023.8,3022.8,0.542]
[1768928855568,11.42426023,3023.8,3023.0,3.30790514]
[1768928855768,11.42426023,3023.8,3022.8,0.542]
[1768928856002,1.19662602,3023.7,3022.8,3.30814938]
[1768928856207,11.42426023,3023.3,3021.4,11.28362026]
[1768928856514,12.900229,3023.0,3021.8,11.28362026]
[1768928856807,12.900229,3023.0,3022.0,3.30906596]
[1768928856996,11.090567,3022.8,3022.0,3.30906596]
[1768928857198,11.090567,3022.8,3021.9,3.30916956]
[1768928857380,11.090567,3022.8,3022.1,3.30889376]
[1768928857712,11.090567,3022.8,3022.2,3.308788]
[1768928857877,1.35230159,3022.8,3021.9,3.30917634]
[1768928858197,13.262007,3022.8,3021.9,3.30917634]
[1768928858578,0.542,3022.7,3021.8,3.30923467]
[1768928859280,0.542,3022.7,3021.8,6.61852052]
[1768928859471,11.96626023,3022.7,3021.2,11.82562026]
[1768928859666,0.001,3023.5,3021.8,3.30925575]
[1768928859667,0.542,3022.6,3021.8,3.30925575]
[1768928859888,0.542,3022.6,3021.6,17.90263004]
[1768928860094,1.19662602,3022.5,3021.6,17.90263004]
[1768928860295,1.19662602,3022.5,3021.7,11.28362026]
[1768928860499,0.542,3022.6,3021.7,11.28362026]
[1768928860774,11.42426023,3023.0,3021.7,11.28362026]
[1768928860984,6.254845,3022.8,3021.7,11.28362026]
[1768928861185,6.984845,3022.9,3021.7,11.28362026]
[1768928861389,11.42426023,3023.0,3021.7,11.28362026]
[1768928861390,0.542,3022.8,3021.7,11.28362026]
[1768928861586,11.96626023,3022.8,3021.4,11.28362026]
[1768928861776,11.42426023,3022.6,3021.5,3.30956148]
[1768928861977,11.42426023,3022.3,3020.9,11.28362026]
[1768928862194,11.42426023,3022.0,3021.0,3.31013946]
[1768928862879,37.37998623,3021.9,3020.8,3.85235402]
[1768928863077,14.64502774,3021.8,3020.8,0.542]
[1768928863290,0.542,3021.7,3020.8,0.542]
[1768928863608,35.83442153,3021.6,3020.4,3.31078693]
[1768928863907,35.83442153,3021.6,3020.1,3.31108976]
[1768928863908,12.52797153,3021.4,3020.1,3.31108976]
[1768928864082,11.996676,3021.2,3020.3,6.62181643]
[1768928864405,10.165676,3021.2,3020.3,3.31088706]
[1768928864581,10.165676,3021.2,3019.2,6.91899875]
[1768928864582,30.0,3021.0,3019.6,11.71823766]
[1768928864778,35.21398353,3020.8,3019.7,1.50300326]
[1768928864978,16.221738,3020.6,3019.1,12.45718116]
[1768928865179,15.89919,3020.5,3019.5,3.31174654]
[1768928865376,12.40816744,3020.4,3019.1,12.45718116]
[1768928865582,12.40816744,3020.8,3019.1,12.45718116]
[1768928865802,14.956783,3020.6,3019.5,3.3117767]
[1768928866083,0.542,3020.5,3019.4,15.76905424]
[1768928866282,0.542,3020.5,3019.4,3.31187308]
[1768928866495,0.542,3020.5,3019.0,12.45718116]
[1768928866496,26.16981544,3020.4,3019.0,12.45718116]
[1768928866709,30.0,3020.3,3019.4,3.31190402]
[1768928866891,30.0,3020.2,3019.4,3.31191372]
[1768928867090,0.542,3020.1,3019.4,3.31191372]
[1768928867294,0.542,3020.1,3019.3,3.31199213]
[1768928867714,0.542,3020.1,3019.4,3.31191518]
[1768928867915,1.37031842,3020.2,3019.2,6.62427132]
[1768928868192,0.542,3020.0,3019.2,5.34485272]
[1768928868491,0.542,3019.9,3019.2,12.48794734]
[1768928868690,0.542,3019.9,3019.4,0.002]
[1768928868901,12.40816744,3020.7,3019.4,0.002]
[1768928868902,0.542,3019.8,3019.4,0.002]
[1768928869702,12.40816744,3020.7,3019.4,0.002]
[1768928869898,14.411067,3020.6,3019.4,0.002]
[1768928870199,12.886129,3020.4,3019.4,0.002]
[1768928870591,0.542,3020.3,3019.4,12.45918116]
[1768928871825,12.40816744,3020.7,3019.4,12.45918116]
[1768928872019,3.568034,3020.5,3019.5,19.08079434]
[1768928872219,0.128,3021.3,3019.5,19.08079434]
[1768928872220,0.542,3020.4,3019.6,12.45718116]
[1768928872421,12.40816744,3021.0,3019.6,12.45718116]
[1768928872612,3.327982,3020.8,3019.6,14.36546059]
[1768928873011,11.898962,3020.7,3019.6,14.36546059]
[1768928873211,2.725538,3020.6,3019.6,14.36546059]
[1768928873533,12.40816744,3020.8,3019.6,14.36546059]
[1768928873534,2.134456,3020.4,3019.6,14.36546059]
[1768928873702,2.134456,3020.4,3019.6,12.45718116]
[1768928874123,2.134456,3020.4,3019.7,3.31158724]
[1768928874434,1.45219953,3020.7,3019.7,19.08035564]
[1768928874435,2.725231,3020.6,3019.7,19.08035564]
[1768928874736,12.40816744,3021.1,3019.8,12.48979194]
[1768928874921,12.40816744,3021.4,3019.8,12.45718116]
[1768928875232,3.30906684,3022.0,3019.8,12.45718116]
[1768928875233,18.566156,3021.2,3019.8,12.45718116]
[1768928875442,3.15163234,3021.1,3020.0,12.45718116]
[1768928875736,19.812987,3021.2,3020.0,12.45718116]
[1768928876106,2.136,3021.2,3020.2,12.45718116]
[1768928876306,0.542,3021.1,3020.2,12.45718116]
[1768928876613,0.542,3021.0,3020.2,12.45718116]
[1768928876809,28.65100744,3020.9,3019.7,12.45718116]
[1768928877023,9.40834,3020.8,3020.0,3.31125827]
[1768928877223,0.542,3020.8,3020.0,3.31125827]
[1768928877400,0.542,3020.7,3020.0,3.31125827]
[1768928878259,0.542,3020.7,3019.5,12.45718116]
[1768928878403,12.40816744,3020.5,3019.6,3.31169261]
[1768928878603,13.64898418,3020.4,3019.5,3.31173933]
[1768928878802,41.10177744,3020.3,3019.4,0.002]
[1768928879003,0.542,3020.2,3019.4,0.002]
[1768928879803,0.542,3020.2,3019.4,3.31389549]
[1768928880224,12.95016744,3020.2,3019.4,0.002]
[1768928880504,13.70318418,3020.1,3019.4,0.002]
[1768928880832,13.70318418,3020.1,3019.7,0.002]
[1768928882530,0.542,3020.0,3019.7,0.002]
[1768928883202,0.001,3020.4,3019.7,0.002]
[1768928883534,0.001,3020.4,3019.7,12.45918116]
[1768928883706,0.001,3020.4,3019.7,13.70509928]
[1768928884212,0.001,3020.4,3019.8,3.31147758]
[1768928884533,7.186623,3021.3,3019.9,12.45718116]
[1768928884719,7.791378,3021.1,3019.9,12.45718116]
[1768928885857,0.542,3021.0,3019.9,12.45718116]
[1768928886327,41.91979144,3020.9,3019.9,3.31131619]
[1768928886519,12.40816744,3020.9,3019.9,3.31131619]
[1768928886740,1.29501674,3020.8,3019.9,6.62268411]
[1768928888447,12.40816744,3020.6,3019.7,0.544]
[1768928888662,0.542,3020.5,3019.7,0.544]
[1768928888960,0.542,3020.5,3019.7,3.31358124]
[1768928889191,0.542,3020.5,3019.7,6.6251375]
[1768928889472,7.912278,3020.8,3019.8,12.45718116]
[1768928889632,12.40816744,3021.2,3019.8,12.45718116]
[1768928889840,3.385263,3021.0,3019.8,12.45718116]
[1768928890376,3.385263,3021.0,3020.0,12.45718116]
[1768928890678,0.542,3020.9,3020.0,12.45718116]
[1768928890876,0.542,3020.9,3020.1,14.36517286]
[1768928891380,0.542,3020.8,3020.1,14.36517286]
[1768928891541,2.64855,3021.0,3020.1,14.36517286]
[1768928891742,0.542,3020.9,3020.1,14.36517286]
[1768928891974,0.542,3020.9,3020.2,13.89369845]
[1768928892137,12.40816744,3021.3,3020.2,12.45718116]
[1768928892334,12.40816744,3021.3,3020.1,1.9079917]
[1768928892335,17.080759,3021.1,3020.0,12.45718116]
[1768928892534,12.40816744,3021.5,3020.0,12.45718116]
[1768928892772,2.284678,3021.3,3020.0,12.45718116]
[1768928893001,29.94859244,3021.1,3020.1,1.9079917]
[1768928893174,12.40816744,3021.1,3019.9,19.079917]
[1768928893698,12.40816744,3020.9,3020.0,0.002]
[1768928893901,0.542,3020.8,3020.0,0.002]
[1768928894216,0.542,3020.8,3020.0,12.45918116]
[1768928894398,0.001,3020.8,3020.2,12.45718116]
[1768928894605,0.543,3020.8,3020.2,12.45718116]
[1768928894773,0.543,3020.8,3020.2,14.365329]
[1768928895879,0.543,3020.8,3020.2,1.90814784]
[1768928896081,0.543,3020.8,3020.1,3.31114863]
[1768928896304,0.543,3020.8,3020.0,3.31320949]
[1768928896825,13.42578706,3020.8,3020.0,0.002]
[1768928900937,12.88378706,3020.8,3020.0,12.09214608]
[1768928901249,0.542,3020.7,3020.0,12.09214608]
[1768928902347,0.001,3020.8,3020.1,3.31114863]
[1768928902551,0.543,3020.6,3020.0,3.31320589]
[1768928904108,0.543,3020.6,3020.0,6.62446416]
[1768928904311,0.543,3020.6,3020.0,15.40335197]
[1768928905125,0.543,3020.6,3020.0,3.31320589]
[1768928906429,1.88567871,3020.6,3020.0,0.002]
[1768928907814,1.88567871,3020.6,3020.3,0.002]
[1768928908234,1.34267871,3020.6,3020.3,0.002]
[1768928908418,0.543,3020.6,3020.3,0.002]
[1768928911432,0.001,3020.8,3020.3,0.002]
[1768928911675,0.543,3020.7,3020.3,0.002]
[1768928912557,13.42578706,3020.7,3020.3,0.002]
[1768928912758,13.42578706,3020.7,3019.8,12.08615428]
[1768928912958,14.22546577,3020.6,3019.9,3.31131432]
[1768928913626,14.22546577,3020.6,3020.0,3.3112364]
[1768928914030,14.22546577,3020.6,3019.9,3.31131926]
[1768928914229,14.22546577,3020.6,3020.0,3.31121592]
[1768928914455,14.22546577,3020.6,3019.8,12.08615428]
[1768928914663,1.47684658,3020.5,3019.8,15.39757526]
[1768928914965,1.47684658,3020.5,3019.9,3.31132518]
[1768928915473,1.47684658,3020.5,3020.0,12.09014608]
[1768928915772,0.543,3020.7,3020.0,12.09014608]
[1768928915983,13.42578706,3020.7,3020.0,12.09014608]
[1768928916290,0.543,3020.6,3020.0,12.09014608]
[1768928916982,0.543,3020.6,3020.0,15.40138658]
[1768928917140,1.88567871,3020.6,3020.0,15.40138658]
[1768928917579,1.88567871,3020.6,3020.1,11.92414608]
[1768928917747,0.543,3020.6,3020.1,11.75814608]
[1768928918588,0.544,3020.8,3020.1,11.75814608]
[1768928918903,13.42678706,3020.8,3019.8,12.63314608]
[1768928919269,13.42678706,3020.8,3020.0,3.31125481]
[1768928919468,1.34267871,3020.7,3020.0,15.40140089]
[1768928920095,14.22546577,3020.7,3019.7,0.002]
[1768928920293,12.88278706,3020.5,3019.8,15.40157116]
[1768928920497,0.543,3020.4,3019.8,3.31142754]
[1768928920804,0.543,3020.4,3019.9,12.09014608]
[1768928921664,0.543,3020.4,3019.9,15.40151369]
[1768928922372,0.001,3020.5,3020.0,12.09014608]
[1768928922579,0.543,3020.4,3020.0,12.09014608]
[1768928923301,0.543,3020.4,3020.0,15.40140004]
[1768928923663,0.543,3020.4,3020.0,12.09014608]
[1768928923892,0.543,3020.4,3020.0,15.40139894]
[1768928924268,0.543,3020.4,3020.0,15.40138846]
[1768928924593,0.543,3020.4,3020.0,12.09014608]
[1768928924897,0.543,3020.4,3020.0,15.40139089]
[1768928925264,12.93812418,3020.3,3019.8,0.002]
[1768928925464,12.93812418,3020.3,3019.7,0.002]
[1768928925465,3.31509261,3019.8,3018.8,11.86228883]
[1768928925673,0.543,3019.7,3018.8,11.86228883]
[1768928926581,13.48112418,3019.7,3018.8,11.86228883]
[1768928927473,13.48112418,3019.7,3018.9,18.48721843]
[1768928927675,13.48112418,3019.7,3019.0,11.86228883]
[1768928927870,12.93812418,3020.0,3019.0,11.86228883]
[1768928928101,3.31509261,3020.0,3019.2,11.86228883]
[1768928928906,16.25321679,3020.0,3019.2,11.86228883]
[1768928929102,12.93812418,3019.9,3019.0,11.86228883]
[1768928929404,12.93812418,3019.9,3019.1,3.31224537]
[1768928929578,12.93812418,3019.9,3019.1,6.62449074]
[1768928929774,12.93812418,3019.9,3019.2,11.86228883]
[1768928930376,12.93812418,3019.9,3019.1,3.31224537]
[1768928930605,1.62532168,3019.8,3019.1,3.31224537]
[1768928930904,1.62532168,3019.8,3019.1,6.62449074]
[1768928931097,12.93812418,3019.9,3019.1,6.62449074]
[1768928931286,12.93812418,3019.9,3019.1,18.48677957]
[1768928931687,0.543,3019.8,3019.1,18.48677957]
[1768928932183,0.543,3019.8,3019.2,11.86228883]